bitfinex/quotes_ETHUSD_20230102
["timestamp","ask_amount","ask_price","bid_price","bid_amount"]
[1672673597466,5.0,1220.7,1220.5,16.48562]
[1672673599528,5.0,1220.7,1220.5,8.29226]
[1672673599740,5.0,1220.7,1220.5,0.099]
[1672673599975,5.0,1220.7,1220.4,16.4862]
[1672673600143,17.56479885,1220.7,1220.5,8.19318]
[1672673600353,17.56479885,1220.7,1220.5,8.29218]
[1672673602044,17.56479885,1220.7,1220.5,0.099]
[1672673602290,15.8388,1220.7,1220.5,24.57987]
[1672673602522,15.8388,1220.7,1220.5,24.67887]
[1672673603620,15.8388,1220.7,1220.5,16.48551]
[1672673603835,15.8388,1220.7,1220.5,8.29215]
[1672673604916,15.8388,1220.7,1220.5,16.48551]
[1672673605520,15.8388,1220.7,1220.5,24.67887]
[1672673605964,15.8388,1220.7,1220.5,16.48551]
[1672673607034,15.8388,1220.7,1220.5,8.29215]
[1672673607411,15.8388,1220.7,1220.5,16.48551]
[1672673608957,15.8388,1220.7,1220.5,8.29215]
[1672673609288,15.8388,1220.7,1220.5,16.48551]
[1672673609553,15.8388,1220.7,1220.5,24.67887]
[1672673610080,15.8408,1220.7,1220.5,24.67587]
[1672673610296,15.8388,1220.7,1220.5,24.67887]
[1672673610445,15.8388,1220.7,1220.5,16.48551]
[1672673610660,15.8388,1220.7,1220.5,24.67887]
[1672673611089,15.8388,1220.7,1220.5,16.48551]
[1672673611552,15.8388,1220.7,1220.5,24.67887]
[1672673612489,15.8388,1220.7,1220.5,16.48243494]
[1672673612703,15.8388,1220.7,1220.5,24.67579494]
[1672673612913,15.8388,1220.7,1220.5,16.48243494]
[1672673613280,10.8388,1220.7,1220.5,16.48243494]
[1672673613920,10.8388,1220.7,1220.5,8.28907494]
[1672673615340,10.8388,1220.7,1220.5,28.67579494]
[1672673615700,10.8388,1220.7,1220.5,20.48243494]
[1672673616120,10.8388,1220.7,1220.5,24.67579494]
[1672673618596,10.8388,1220.7,1220.5,16.48243494]
[1672673618744,10.8388,1220.7,1220.5,8.28907494]
[1672673618969,20.94075585,1220.7,1220.5,0.099]
[1672673619315,12.74867585,1220.7,1220.4,20.38749]
[1672673619479,12.74867585,1220.7,1220.4,20.46549]
[1672673619694,12.74867585,1220.7,1220.4,28.68024]
[1672673620294,10.8388,1220.7,1220.4,28.68024]
[1672673624509,10.8388,1220.7,1220.4,28.68711816]
[1672673625368,19.03094,1220.7,1220.4,20.49322816]
[1672673625547,10.8388,1220.7,1220.4,20.49322816]
[1672673626653,10.8388,1220.7,1220.4,20.34322816]
[1672673626807,5.0,1220.6,1220.4,28.53725816]
[1672673627020,5.0,1220.6,1220.4,24.68725816]
[1672673630327,5.0,1220.6,1220.4,0.099]
[1672673630328,22.97615,1220.6,1220.4,0.099]
[1672673630538,31.16946,1220.6,1220.2,13.22891]
[1672673631163,31.12582894,1220.6,1220.2,13.22891]
[1672673631631,4.0,1220.5,1220.2,13.22891]
[1672673631840,12.19341,1220.5,1220.2,13.22891]
[1672673632218,20.38682,1220.5,1220.2,13.22891]
[1672673632593,20.38682,1220.5,1220.2,8.29411]
[1672673632904,30.58944918,1220.5,1220.2,0.099]
[1672673633109,5.0,1220.4,1220.1,24.68586]
[1672673633263,5.0,1220.4,1220.2,8.42515]
[1672673633473,5.0,1220.4,1220.2,8.52415]
[1672673635285,13.19404,1220.4,1220.2,0.329]
[1672673635490,5.0,1220.4,1220.1,24.7155883]
[1672673635706,5.0,1220.4,1220.1,16.5198983]
[1672673635909,5.0,1220.4,1220.1,24.7159383]
[1672673642859,14.50897854,1220.5,1220.1,24.7159383]
[1672673643054,18.63635854,1220.5,1220.1,24.7159383]
[1672673643660,18.63313503,1220.5,1220.1,24.7159383]
[1672673646299,10.43975503,1220.5,1220.1,24.7159383]
[1672673646835,18.63311503,1220.5,1220.1,24.7159383]
[1672673649352,18.63311503,1220.5,1220.2,4.0]
[1672673649565,10.43975503,1220.5,1220.2,4.0]
[1672673649767,10.43975503,1220.5,1220.3,8.1947]
[1672673649977,10.43975503,1220.5,1220.3,8.2937]
[1672673650238,5.0,1220.4,1220.3,8.2937]
[1672673650687,5.0,1220.4,1220.3,28.7191]
[1672673651590,5.0,1220.4,1220.3,30.07649729]
[1672673651808,0.066,1220.5,1220.3,30.07649729]
[1672673651979,9.9702,1220.7,1220.4,4.23]
[1672673652189,9.9702,1220.7,1220.5,24.58008]
[1672673652397,4.95,1220.6,1220.5,24.67908]
[1672673653030,4.95,1220.6,1220.5,8.29236]
[1672673654154,4.95,1220.6,1220.5,0.099]
[1672673654292,4.95,1220.6,1220.4,24.90995]
[1672673655356,4.95,1220.6,1220.4,16.71624]
[1672673655872,4.95,1220.6,1220.4,8.5226]
[1672673656971,13.14285,1220.6,1220.4,0.329]
[1672673657184,13.14285,1220.6,1220.4,0.23]
[1672673657500,21.3357,1220.6,1220.3,12.67917551]
[1672673657652,29.52855,1220.6,1220.3,4.48477551]
[1672673657862,29.52855,1220.6,1220.3,4.38577551]
[1672673658399,21.3357,1220.6,1220.3,4.38577551]
[1672673658655,21.3357,1220.6,1220.3,12.58033551]
[1672673658967,21.3357,1220.6,1220.3,12.67933551]
[1672673659253,21.3357,1220.6,1220.3,12.67937551]
[1672673659434,17.14285,1220.6,1220.3,20.87407551]
[1672673659744,17.14285,1220.6,1220.3,12.67937551]
[1672673660141,17.14285,1220.6,1220.3,20.87407551]
[1672673662259,13.14285,1220.6,1220.3,20.87407551]
[1672673662415,4.95,1220.6,1220.3,20.87407551]
[1672673662883,4.95,1220.6,1220.4,3.0]
[1672673663503,4.95,1220.6,1220.4,11.19402]
[1672673663729,4.95,1220.6,1220.4,11.29302]
[1672673664731,4.95,1220.6,1220.4,3.099]
[1672673664992,4.95,1220.6,1220.4,3.0]
[1672673665185,4.95,1220.6,1220.4,11.194]
[1672673665374,4.95,1220.6,1220.4,19.48703]
[1672673666261,10.03867854,1220.7,1220.4,19.48703]
[1672673666412,9.97267854,1220.7,1220.4,27.68106]
[1672673666622,5.0,1220.5,1220.4,27.68106]
[1672673667569,5.0,1220.5,1220.4,19.48703]
[1672673670720,5.0,1220.5,1220.4,27.68106]
[1672673671980,5.0,1220.5,1220.4,11.293]
[1672673672736,0.066,1220.6,1220.4,19.48703]
[1672673672947,18.16473854,1220.7,1220.4,19.48703]
[1672673672948,5.0,1220.5,1220.4,19.48703]
[1672673673490,5.0,1220.5,1220.4,19.48502361]
[1672673674038,5.0,1220.5,1220.4,11.29099361]
[1672673674190,5.0,1220.5,1220.4,27.90905361]
[1672673678413,5.0,1220.5,1220.4,28.92005361]
[1672673678874,5.066,1220.6,1220.4,28.92005361]
[1672673679079,5.0,1220.6,1220.4,28.92005361]
[1672673684812,10.03867854,1220.7,1220.4,28.92005361]
[1672673685034,9.97267854,1220.7,1220.4,28.92005361]
[1672673686642,9.97267854,1220.7,1220.4,27.90905361]
[1672673693262,12.19569439,1220.7,1220.4,27.90905361]
[1672673695137,20.38779439,1220.7,1220.4,19.71502361]
[1672673697349,20.38779439,1220.7,1220.4,19.71297772]
[1672673697676,12.19569439,1220.7,1220.4,19.71297772]
[1672673698694,12.19569439,1220.7,1220.4,27.90700772]
[1672673698908,9.97267854,1220.7,1220.4,27.90700772]
[1672673701439,9.97267854,1220.7,1220.6,8.19269]
[1672673701651,14.97267854,1220.7,1220.6,8.29169]
[1672673702641,14.9702,1220.7,1220.6,8.29169]
[1672673703183,14.9702,1220.7,1220.6,16.48438]
[1672673705274,9.9702,1220.7,1220.6,8.29169]
[1672673706329,14.9702,1220.7,1220.6,8.29169]
[1672673707587,14.9702,1220.7,1220.6,0.099]
[1672673707786,14.9702,1220.7,1220.6,8.19269]
[1672673708001,14.9702,1220.7,1220.6,8.29169]
[1672673709212,14.9702,1220.7,1220.6,16.48438]
[1672673712223,14.96683053,1220.7,1220.6,16.48438]
[1672673712434,9.96683053,1220.7,1220.6,16.48438]
[1672673713100,14.96683053,1220.7,1220.6,16.48438]
[1672673713308,14.96683053,1220.7,1220.6,24.67707]
[1672673714433,14.96683053,1220.7,1220.6,16.48438]
[1672673719395,14.96683053,1220.7,1220.6,8.29169]
[1672673723892,9.96683053,1220.7,1220.6,8.29169]
[1672673724108,9.96683053,1220.7,1220.6,0.099]
[1672673724302,9.96683053,1220.7,1220.5,24.70475189]
[1672673725973,9.96683053,1220.7,1220.5,8.31887189]
[1672673727434,9.96683053,1220.7,1220.5,8.31943189]
[1672673729389,9.96683053,1220.7,1220.5,16.51279189]
[1672673729950,9.96683053,1220.7,1220.5,8.31943189]
[1672673731090,5.0,1220.6,1220.5,8.31943189]
[1672673731281,5.0,1220.6,1220.5,0.35610189]
[1672673731490,5.0,1220.6,1220.5,0.25710189]
[1672673732034,5.0,1220.6,1220.5,0.02710189]
[1672673732208,5.0,1220.6,1220.4,27.67599772]
[1672673734954,5.0,1220.6,1220.4,27.67204648]
[1672673735777,5.0,1220.6,1220.5,1.5]
[1672673735985,5.0,1220.6,1220.5,9.69336]
[1672673736192,5.0,1220.6,1220.5,9.79236]
[1672673737707,5.0,1220.6,1220.5,13.79236]
[1672673737858,5.0,1220.6,1220.5,21.98572]
[1672673738069,5.0,1220.6,1220.5,17.98572]
[1672673741016,5.0,1220.6,1220.5,9.79236]
[1672673742754,5.0,1220.6,1220.5,20.04986156]
[1672673748163,5.0,1220.6,1220.5,11.85650156]
[1672673752213,10.03530907,1220.7,1220.5,11.85650156]
[1672673752438,9.96930907,1220.7,1220.5,11.85650156]
[1672673753338,5.0,1220.6,1220.5,11.85650156]
[1672673754217,5.0,1220.6,1220.5,3.66314156]
[1672673754431,5.0,1220.6,1220.5,3.56414156]
[1672673755800,5.0,1220.6,1220.5,11.75750156]
[1672673755991,5.0,1220.6,1220.5,11.85650156]
[1672673759073,5.0,1220.6,1220.5,11.85256303]
[1672673759287,10.03530907,1220.7,1220.5,11.85256303]
[1672673759502,9.96930907,1220.7,1220.5,11.85256303]
[1672673760091,9.96930907,1220.7,1220.5,20.04592303]
[1672673760276,5.0,1220.6,1220.5,20.04592303]
[1672673760963,5.0,1220.6,1220.5,11.85256303]
[1672673761172,5.0,1220.6,1220.5,3.65920303]
[1672673761496,21.38538,1220.6,1220.5,3.56020303]
[1672673763432,13.19269,1220.6,1220.5,3.56020303]
[1672673764292,5.0,1220.6,1220.5,3.56020303]
[1672673770759,21.38538,1220.6,1220.5,3.56020303]
[1672673770951,13.19269,1220.6,1220.5,3.56020303]
[1672673771327,5.0,1220.6,1220.5,3.56020303]
[1672673771936,19.23889907,1220.7,1220.5,3.56020303]
[1672673772105,19.23889907,1220.7,1220.5,19.94677303]
[1672673772106,5.0,1220.6,1220.5,19.94677303]
[1672673772314,5.0,1220.6,1220.5,11.85241303]
[1672673772755,5.0,1220.6,1220.5,20.04577303]
[1672673773019,5.0,1220.6,1220.5,11.85241303]
[1672673773206,5.0,1220.6,1220.5,20.04577303]
[1672673779531,10.03283053,1220.7,1220.5,20.04577303]
[1672673779744,9.96683053,1220.7,1220.5,20.04577303]
[1672673780592,5.0,1220.6,1220.5,11.85241303]
[1672673782020,5.0,1220.6,1220.5,28.23913303]
[1672673782236,5.0,1220.6,1220.5,20.04577303]
[1672673782798,5.0,1220.6,1220.5,28.23913303]
[1672673783431,5.0,1220.6,1220.5,20.04577303]
[1672673783635,5.0,1220.6,1220.5,20.04293694]
[1672673784944,5.0,1220.6,1220.5,28.23629694]
[1672673785320,5.0,1220.6,1220.5,20.04293694]
[1672673786577,10.03283053,1220.7,1220.5,20.04293694]
[1672673786801,9.96683053,1220.7,1220.5,28.23629694]
[1672673787104,9.96683053,1220.7,1220.5,28.13629694]
[1672673787523,5.0,1220.6,1220.5,28.13629694]
[1672673787794,5.0,1220.6,1220.5,19.94293694]
[1672673788917,5.0,1220.6,1220.5,28.13629694]
[1672673789814,5.0,1220.6,1220.5,19.94293694]
[1672673793025,5.0,1220.6,1220.5,11.74957694]
[1672673793742,5.0,1220.6,1220.5,19.94293694]
[1672673793947,10.03283053,1220.7,1220.5,28.13629694]
[1672673794158,9.96683053,1220.7,1220.5,28.13629694]
[1672673794476,5.0,1220.6,1220.5,19.94293694]
[1672673796653,5.0,1220.6,1220.5,28.13629694]
[1672673796855,5.0,1220.6,1220.5,19.94293694]
[1672673800481,10.03283053,1220.7,1220.5,19.94293694]
[1672673800673,9.96683053,1220.7,1220.5,19.94293694]
[1672673804135,9.96683053,1220.7,1220.5,28.13629694]
[1672673804376,9.96683053,1220.7,1220.5,19.94293694]
[1672673804800,9.96683053,1220.7,1220.5,28.13629694]
[1672673804987,9.96683053,1220.7,1220.5,19.94293694]
[1672673805196,9.96683053,1220.7,1220.5,28.13629694]
[1672673806076,9.96683053,1220.7,1220.5,19.94293694]
[1672673806859,9.96683053,1220.7,1220.5,28.13629694]
[1672673809290,9.96683053,1220.7,1220.5,28.13424342]
[1672673809710,0.07847854,1220.8,1220.5,28.13424342]
[1672673809932,0.01,1220.8,1220.7,2.397]
[1672673810118,0.01,1220.8,1220.7,40.45592308]
[1672673810119,5.01,1220.8,1220.7,40.45592308]
[1672673810365,0.01,1220.8,1220.7,42.49408]
[1672673810580,0.01,1220.8,1220.7,47.57871573]
[1672673811142,0.01,1220.8,1220.7,42.51787265]
[1672673813670,0.00618682,1220.8,1220.7,42.51787265]
[1672673817204,0.00618682,1220.8,1220.7,34.32585265]
[1672673821885,0.00618682,1220.8,1220.7,29.31785265]
[1672673826447,4.95866536,1221.0,1220.7,29.31785265]
[1672673829457,4.95866536,1221.0,1220.7,27.92885265]
[1672673838483,20.11824,1221.1,1220.7,27.92885265]
[1672673838715,23.802961,1221.1,1220.8,4.0]
[1672673838934,23.802961,1221.1,1220.8,12.19112]
[1672673839143,23.802961,1221.1,1220.8,12.29012]
[1672673840306,23.802961,1221.1,1220.8,16.48146]
[1672673840943,15.613621,1221.1,1220.8,16.48146]
[1672673842721,15.615621,1221.1,1220.8,16.47846]
[1672673842911,23.803001,1221.1,1220.8,16.48146]
[1672673844359,15.613621,1221.1,1220.8,16.48146]
[1672673844622,15.613621,1221.1,1220.8,24.6728]
[1672673845518,0.066,1221.2,1220.9,9.38686114]
[1672673845767,10.1119,1221.4,1221.0,45.97070422]
[1672673846095,10.1119,1221.4,1221.1,8.41906]
[1672673846250,13.056487,1221.4,1221.1,0.099]
[1672673846458,42.38240814,1221.4,1221.0,3.0]
[1672673846669,5.0,1221.1,1221.0,3.0]
[1672673847259,5.0,1221.1,1220.9,0.099]
[1672673847444,5.0,1221.1,1220.9,3.0]
[1672673847660,8.18953,1221.1,1220.9,3.0]
[1672673847832,19.869595,1221.1,1220.8,0.099]
[1672673848044,29.070125,1221.1,1220.7,18.7656]
[1672673848261,4.501535,1221.1,1220.8,8.19133]
[1672673848474,5.0,1221.0,1220.8,8.29033]
[1672673848928,5.0,1221.0,1220.8,0.099]
[1672673849083,15.272,1221.0,1220.7,19.38825]
[1672673850510,15.272,1221.0,1220.7,16.48225]
[1672673856687,15.272,1221.0,1220.7,24.67427]
[1672673861224,10.272,1221.0,1220.7,24.67427]
[1672673862306,5.0,1220.9,1220.7,24.67427]
[1672673866036,5.0,1220.9,1220.7,16.48225]
[1672673866037,6.5338,1220.9,1220.7,16.48225]
[1672673866251,3.46,1220.8,1220.7,0.099]
[1672673866516,31.02302,1220.8,1220.5,3.45531342]
[1672673866666,45.197915,1220.8,1220.5,3.45531342]
[1672673867362,4.0,1220.7,1220.5,3.45531342]
[1672673867513,20.38456,1220.7,1220.5,3.45531342]
[1672673868159,21.39556,1220.7,1220.5,3.45531342]
[1672673868514,27.1601185,1220.7,1220.5,3.45531342]
[1672673868679,5.0,1220.6,1220.5,3.45531342]
[1672673869778,13.19269,1220.6,1220.5,3.45531342]
[1672673869988,5.0,1220.6,1220.5,3.45531342]
[1672673870810,5.0,1220.6,1220.5,3.45147329]
[1672673873082,5.002,1220.6,1220.5,3.45147329]
[1672673873314,5.0,1220.6,1220.5,3.45147329]
[1672673877477,5.0,1220.6,1220.5,11.64483329]
[1672673877700,5.0,1220.6,1220.5,11.74383329]
[1672673878392,5.0,1220.6,1220.5,3.55047329]
[1672673878603,5.0,1220.6,1220.5,3.45147329]
[1672673878831,5.0,1220.6,1220.5,11.64483329]
[1672673879018,5.0,1220.6,1220.5,3.55047329]
[1672673879233,5.0,1220.6,1220.5,3.45147329]
[1672673880519,6.8415585,1220.7,1220.5,3.45147329]
[1672673880731,6.7755585,1220.7,1220.5,3.45147329]
[1672673881596,5.0,1220.6,1220.5,3.45147329]
[1672673881997,5.0,1220.6,1220.5,11.64483329]
[1672673882331,5.0,1220.6,1220.5,11.74383329]
[1672673883070,5.0,1220.6,1220.5,28.13055329]
[1672673883379,5.0,1220.6,1220.5,28.36055329]
[1672673883760,5.0,1220.6,1220.5,20.16719329]
[1672673883974,5.0,1220.6,1220.5,28.36055329]
[1672673884374,5.0,1220.6,1220.5,20.16719329]
[1672673884650,5.0,1220.6,1220.5,28.36055329]
[1672673885529,5.0,1220.6,1220.5,20.16719329]
[1672673889887,5.0,1220.6,1220.5,28.36055329]
[1672673890099,5.0,1220.6,1220.5,20.16719329]
[1672673891566,0.066,1220.7,1220.5,20.16719329]
[1672673891772,25.61176014,1220.8,1220.5,20.16719329]
[1672673891988,23.83200501,1220.8,1220.5,20.16387115]
[1672673892237,29.91885515,1220.8,1220.5,20.16387115]
[1672673892772,5.0,1220.6,1220.5,20.16387115]
[1672673893766,5.0,1220.6,1220.5,28.35723115]
[1672673893972,5.0,1220.6,1220.5,31.35723115]
[1672673894435,5.0,1220.6,1220.5,35.50609229]
[1672673894622,5.0,1220.6,1220.5,36.51109229]
[1672673895109,5.0,1220.6,1220.5,36.76347611]
[1672673895446,5.066,1220.7,1220.5,36.76347611]
[1672673895717,5.0,1220.7,1220.6,31.80807]
[1672673895897,5.0,1220.7,1220.6,31.90707]
[1672673896515,0.066,1220.8,1220.7,4.0]
[1672673896705,5.0,1220.8,1220.7,7.23]
[1672673896915,5.0,1220.8,1220.7,19.71304]
[1672673899764,0.06213298,1220.9,1220.7,19.71304]
[1672673899765,5.06213298,1220.9,1220.7,19.71304]
[1672673899971,5.0,1220.9,1220.7,19.71304]
[1672673903964,25.14334312,1221.0,1220.7,19.71304]
[1672673904174,18.99436,1221.0,1220.7,19.71304]
[1672673904386,10.8043,1221.0,1220.7,27.90506]
[1672673910095,23.24765831,1221.0,1220.7,19.71304]
[1672673910297,23.24765831,1221.0,1220.7,11.52102]
[1672673910298,38.53555845,1221.0,1220.7,11.52102]
[1672673910625,46.72560845,1221.0,1220.7,3.329]
[1672673910973,46.72560845,1221.0,1220.7,3.23]
[1672673911213,38.53555845,1221.0,1220.7,11.42195]
[1672673911391,38.53555845,1221.0,1220.7,11.52095]
[1672673911705,30.34550845,1221.0,1220.7,19.71292]
[1672673912231,30.34545845,1221.0,1220.7,11.5209]
[1672673912963,38.53545845,1221.0,1220.7,11.5209]
[1672673913183,30.34545845,1221.0,1220.7,11.5209]
[1672673913498,38.53545845,1221.0,1220.7,11.5209]
[1672673913650,30.34545845,1221.0,1220.7,11.5209]
[1672673914976,38.53545845,1221.0,1220.7,3.329]
[1672673915150,38.53545845,1221.0,1220.7,3.23]
[1672673915345,38.53545845,1221.0,1220.7,11.42195]
[1672673915555,5.0,1220.8,1220.7,11.52095]
[1672673916879,5.0,1220.8,1220.7,11.51863094]
[1672673917586,5.0,1220.8,1220.7,15.51863094]
[1672673917798,5.0,1220.8,1220.7,19.71065094]
[1672673918442,5.002,1220.8,1220.7,27.89967094]
[1672673918764,5.0,1220.8,1220.7,27.90267094]
[1672673920080,0.06213298,1220.9,1220.7,27.90267094]
[1672673920081,5.06213298,1220.9,1220.7,27.90267094]
[1672673920286,5.0,1220.9,1220.7,27.90267094]
[1672673922653,5.0,1220.9,1220.7,24.90499]
[1672673928524,5.0,1220.9,1220.7,8.52095]
[1672673928752,5.0,1220.9,1220.7,0.329]
[1672673928967,8.83338431,1220.9,1220.6,0.099]
[1672673929109,8.83338431,1220.9,1220.6,11.19215]
[1672673929319,8.83338431,1220.9,1220.6,19.48346]
[1672673929548,8.83338431,1220.9,1220.6,27.67588]
[1672673934410,5.0,1220.9,1220.6,27.67588]
[1672673935192,5.0,1220.9,1220.7,4.0]
[1672673935481,5.0,1220.9,1220.8,16.38268]
[1672673935644,5.0,1220.9,1220.8,16.48168]
[1672673935860,5.0,1220.9,1220.8,24.67302]
[1672673936683,5.0,1220.9,1220.8,16.48168]
[1672673939441,5.0,1220.9,1220.8,24.67302]
[1672673940750,5.0,1220.9,1220.8,30.73809641]
[1672673940915,5.0,1220.9,1220.8,25.91402]
[1672673941717,5.0,1220.9,1220.8,25.91032399]
[1672673941854,5.0,1220.9,1220.8,17.71898399]
[1672673943302,5.0,1220.9,1220.8,16.70798399]
[1672673944357,5.0,1220.9,1220.8,19.70798399]
[1672673944547,5.0,1220.9,1220.8,27.89932399]
[1672673944751,5.0,1220.9,1220.8,19.70798399]
[1672673945545,5.0,1220.9,1220.8,27.89932399]
[1672673946211,5.0,1220.9,1220.8,19.70798399]
[1672673946383,5.0,1220.9,1220.8,27.89932399]
[1672673947156,4.85,1220.9,1220.8,27.89932399]
[1672673949087,0.06213298,1221.0,1220.8,27.89932399]
[1672673949242,0.002,1221.0,1220.8,27.89932399]
[1672673949447,10.08685014,1221.1,1220.8,27.89932399]
[1672673950227,5.0,1220.9,1220.8,27.89932399]
[1672673953714,5.0,1220.9,1220.8,27.84932399]
[1672673954877,5.0,1220.9,1220.8,38.0568919]
[1672673955200,5.0,1220.9,1220.8,28.85732399]
[1672673955615,0.06213298,1221.0,1220.8,28.85732399]
[1672673955616,5.06213298,1221.0,1220.8,28.85732399]
[1672673955863,5.0,1221.0,1220.8,28.85732399]
[1672673957081,5.0,1221.0,1220.8,19.65798399]
[1672673957286,10.07989758,1221.0,1220.8,11.46664399]
[1672673957502,10.07989758,1221.0,1220.8,19.65798399]
[1672673958237,10.07989758,1221.0,1220.8,27.84932399]
[1672673961733,5.0,1220.9,1220.8,27.84932399]
[1672673963271,5.0,1220.9,1220.8,19.65798399]
[1672673963485,10.07989758,1220.9,1220.8,11.46664399]
[1672673963654,10.07989758,1220.9,1220.8,19.65798399]
[1672673966005,5.0,1220.9,1220.8,19.65798399]
[1672673966171,10.07989758,1220.9,1220.8,27.84932399]
[1672673966382,5.0,1220.9,1220.8,27.84932399]
[1672673970900,15.40653056,1221.0,1220.8,27.84932399]
[1672673971086,15.34439758,1221.0,1220.8,27.84932399]
[1672673974318,5.07989758,1220.9,1220.8,27.84932399]
[1672673975103,10.32663298,1221.0,1220.8,27.84932399]
[1672673975104,15.40653056,1221.0,1220.8,27.84932399]
[1672673975316,5.07989758,1220.9,1220.8,27.84932399]
[1672673975528,5.07989758,1220.9,1220.8,27.84664825]
[1672673977833,10.07989758,1220.9,1220.8,27.84664825]
[1672673978866,5.0,1220.9,1220.8,27.84664825]
[1672673980627,10.07989758,1220.9,1220.8,27.84664825]
[1672673983917,5.07989758,1220.9,1220.8,27.84664825]
[1672673984128,15.40653056,1221.0,1220.8,27.84664825]
[1672673984333,15.34439758,1221.0,1220.8,27.84664825]
[1672673984543,15.34439758,1221.0,1220.8,30.3251542]
[1672673984748,5.0,1220.9,1220.8,30.3251542]
[1672673986531,4.9962518,1220.9,1220.8,30.3251542]
[1672673991027,15.40653056,1221.0,1220.8,30.3251542]
[1672673991230,15.34439758,1221.0,1220.8,30.3251542]
[1672673991810,5.07989758,1220.9,1220.8,22.1338142]
[1672673993295,10.07989758,1220.9,1220.8,22.1338142]
[1672673999067,10.07989758,1220.9,1220.8,30.3251542]
[1672673999275,5.07989758,1220.9,1220.8,30.3251542]
[1672673999595,15.40653056,1221.0,1220.8,30.3251542]
[1672673999779,5.07989758,1220.9,1220.8,30.3251542]
[1672674000399,10.07989758,1220.9,1220.8,30.3251542]
[1672674002360,5.0,1220.9,1220.8,30.3251542]
[1672674002568,10.07989758,1220.9,1220.8,30.3251542]
[1672674003608,10.07989758,1220.9,1220.8,22.1338142]
[1672674003821,10.07989758,1220.9,1220.8,30.3251542]
[1672674004645,10.07989758,1220.9,1220.8,22.1338142]
[1672674005276,5.0,1220.9,1220.8,30.3251542]
[1672674006124,10.07989758,1220.9,1220.8,22.1338142]
[1672674006389,5.07989758,1220.9,1220.8,22.1338142]
[1672674006959,5.07989758,1220.9,1220.8,30.3251542]
[1672674007551,10.07989758,1220.9,1220.8,30.3251542]
[1672674008070,5.0,1220.9,1220.8,30.3251542]
[1672674009278,10.07989758,1220.9,1220.8,30.3251542]
[1672674010322,5.0,1220.9,1220.8,30.3251542]
[1672674011002,10.07989758,1220.9,1220.8,30.3251542]
[1672674011527,10.07989758,1220.9,1220.8,22.13001029]
[1672674012454,10.07989758,1220.9,1220.8,13.70867029]
[1672674014342,10.07989758,1220.9,1220.8,21.90001029]
[1672674014550,10.07989758,1220.9,1220.8,22.13001029]
[1672674014736,10.07989758,1220.9,1220.8,13.93867029]
[1672674015592,10.07989758,1220.9,1220.8,5.80750595]
[1672674016432,10.07989758,1220.9,1220.8,5.57750595]
[1672674016877,10.07989758,1220.9,1220.8,13.76884595]
[1672674018033,10.07989758,1220.9,1220.8,5.57750595]
[1672674019799,19.27752014,1220.9,1220.8,5.57750595]
[1672674019992,40.54643545,1220.9,1220.8,2.57750595]
[1672674020201,34.45958531,1220.9,1220.8,2.47850595]
[1672674021511,26.26891531,1220.9,1220.8,2.47850595]
[1672674021925,32.36404601,1220.9,1220.8,2.47850595]
[1672674028159,27.36404601,1220.9,1220.8,2.47850595]
[1672674029039,32.36404601,1220.9,1220.8,2.47850595]
[1672674032875,15.98270601,1220.9,1220.8,2.47850595]
[1672674033298,32.36404601,1220.9,1220.8,2.47850595]
[1672674035131,27.36404601,1220.9,1220.8,2.47850595]
[1672674035926,27.36404601,1220.9,1220.8,2.47529565]
[1672674036080,32.36404601,1220.9,1220.8,2.47529565]
[1672674042232,27.36404601,1220.9,1220.8,2.47529565]
[1672674043013,32.36404601,1220.9,1220.8,2.47529565]
[1672674043773,38.60844645,1220.9,1220.8,2.47529565]
[1672674043939,39.22045131,1220.9,1220.8,2.47529565]
[1672674048423,38.60525131,1220.9,1220.8,2.47529565]
[1672674051554,33.60525131,1220.9,1220.8,2.47529565]
[1672674052626,38.60525131,1220.9,1220.8,2.47529565]
[1672674053244,30.41458131,1220.9,1220.8,2.47529565]
[1672674055403,29.40758131,1220.9,1220.8,2.47529565]
[1672674059713,9.14886114,1220.9,1220.8,2.47529565]
[1672674061006,15.246148,1220.9,1220.8,18.85797565]
[1672674061196,19.54765821,1220.9,1220.8,10.76563565]
[1672674061406,19.54765821,1220.9,1220.8,2.57429565]
[1672674061580,13.45038584,1220.9,1220.8,2.47529565]
[1672674067197,8.45038584,1220.9,1220.8,2.47529565]
[1672674067743,14.54791423,1220.9,1220.8,2.47529565]
[1672674068056,19.54791423,1220.9,1220.8,2.47229272]
[1672674070149,13.45038584,1220.9,1220.8,2.47229272]
[1672674070478,19.54779,1220.9,1220.8,2.47229272]
[1672674071562,13.45038584,1220.9,1220.8,2.47229272]
[1672674074560,21.64105584,1220.9,1220.8,2.47229272]
[1672674075493,13.45038584,1220.9,1220.8,2.47229272]
[1672674077529,9.3015247,1220.9,1220.8,2.47229272]
[1672674080196,17.4921947,1220.9,1220.8,2.47229272]
[1672674081203,12.4921947,1220.9,1220.8,2.47229272]
[1672674082205,17.4921947,1220.9,1220.8,2.47229272]
[1672674083136,9.3015247,1220.9,1220.8,2.47229272]
[1672674083284,9.3015247,1220.9,1220.8,10.66363272]
[1672674083662,9.3015247,1220.9,1220.8,18.95397272]
[1672674084035,9.3015247,1220.9,1220.8,10.76263272]
[1672674084706,15.3996984,1220.9,1220.8,10.76263272]
[1672674084876,14.38289912,1220.9,1220.8,18.95397272]
[1672674085083,9.3015247,1220.9,1220.8,10.76263272]
[1672674085295,14.38137896,1220.9,1220.8,10.76263272]
[1672674085627,14.38137896,1220.9,1220.8,18.95397272]
[1672674086246,14.38137896,1220.9,1220.8,10.76263272]
[1672674086465,15.3996984,1220.9,1220.8,10.76263272]
[1672674086773,15.3996984,1220.9,1220.8,2.57129272]
[1672674087038,15.3996984,1220.9,1220.8,2.47229272]
[1672674089834,15.3996984,1220.9,1220.8,2.46906346]
[1672674092975,14.38297919,1220.9,1220.8,27.27308346]
[1672674093189,14.38297919,1220.9,1220.8,27.37208346]